lending/lending_fUSD_20250323
["ID","MTS","AMOUNT","RATE_DAILY","PERIOD"]
[356597020,1742764238263,-5105.70874728,0.00011857,2]
[356597021,1742764238288,-3627.97466951,0.00011857,2]
[356597022,1742764238302,-2481.16289941,0.00011857,2]
[356597023,1742764238343,-298.0,0.00011857,2]
[356597211,1742764242746,-1042.09747293,0.00011857,2]
[356597212,1742764242757,-4227.41131076,0.00011857,2]
[356597213,1742764242768,-800.61356129,0.00011857,2]
[356597223,1742764244396,-354.95819762,0.00011857,2]
[356597225,1742764545999,1000.0,0.00031919,30]
[356597226,1742764546596,1000.0,0.00031919,30]
[356597227,1742764547637,1000.0,0.00031919,30]
[356597228,1742764548335,1000.0,0.00031919,30]
[356597229,1742764549260,1000.0,0.00031919,30]
[356597230,1742764549850,1000.0,0.00031919,30]
[356597231,1742764550462,1000.0,0.00031919,30]
[356597232,1742764551085,1000.0,0.00031919,30]
[356597233,1742764551669,1000.0,0.00031919,30]
[356597234,1742764552241,1000.0,0.00031919,30]
[356597235,1742764552812,1000.0,0.00031919,30]
[356597236,1742764553419,1000.0,0.00031919,30]
[356597237,1742764554080,1000.0,0.00031919,30]
[356597238,1742764554670,951.69328643,0.00031919,30]
[356597239,1742765103239,4021.584981,0.0001,2]
[356597240,1742765112402,2262.33002804,0.00031919,120]
[356597241,1742765120489,1873.63533707,0.00031919,120]
[356597242,1742765138962,1323.62389063,0.00031919,120]
[356597243,1742765140538,868.07028772,0.00031919,120]
[356597244,1742765142678,1596.83375302,0.00031919,120]
[356597245,1742765145520,333.22908493,0.00031919,120]
[356597246,1742765152018,376.14505897,0.00031919,120]
[356597247,1742765160913,535.9,9.329e-05,2]
[356597248,1742765166630,820.75227954,0.00031919,120]
[356597249,1742765172753,1805.15773769,0.00031919,120]
[356597250,1742765174914,207.82377747,0.00031919,120]
[356597251,1742765180833,1884.86858778,0.00031919,120]
[356597252,1742765185936,1129.27114419,0.00031919,120]
[356597254,1742765211456,214.90497887,0.00031919,120]
[356597256,1742765218259,1707.6964647,0.00031919,120]
[356597257,1742765218726,1345.59570434,0.00031919,120]
[356597269,1742765251095,345.4896668,0.00031919,120]
[356597270,1742765255038,1144.27525727,0.00031919,120]
[356597271,1742765260840,188.77111812,0.00031919,120]
[356597272,1742765263219,1079.46031148,0.00031919,120]
[356597273,1742765276517,30174.47265334,0.0001,2]
[356597274,1742765278681,949.54680549,0.00031919,120]
[356597276,1742765301780,330.49181866,0.00031919,120]
[356597277,1742765305747,1279.70434246,0.00031919,120]
[356597278,1742765306380,2026.43489873,0.00031919,120]
[356597279,1742765308666,876.1603517,0.00031919,120]
[356597280,1742765309108,1164.43261049,0.00031919,120]
[356597281,1742765309926,384.16235078,0.00031919,120]
[356597282,1742765311106,2901.0489073,0.00031919,120]
[356597283,1742765311866,1290.43870665,0.00031919,120]
[356597284,1742765317077,505.97670185,0.00031919,120]
[356597285,1742765317766,603.16393723,0.00031919,120]
[356597736,1742765437574,-250.0,0.00011,2]
[356597737,1742765437583,-18351.8811183,0.00011069,2]
[356597742,1742765439896,-5548.1188817,0.00011069,2]
[356597743,1742765439906,-2000.0,0.00011129,2]
[356597744,1742765439916,-178.64,0.00011177,2]
[356597745,1742765439926,-157.0625703,0.00011323,2]
[356597746,1742765439935,-250.0,0.00011339,2]
[356597747,1742765439945,-1000.0,0.00011393,2]
[356597748,1742765439955,-412.9,0.00011403,2]
[356597749,1742765439964,-1226.45,0.00011423,2]
[356597750,1742765439974,-150.0,0.00011477,2]
[356597751,1742765439984,-535.9,0.00011593,2]
[356597752,1742765439994,-172.0942267,0.0001164,2]
[356597753,1742765440003,-255.0762,0.00011749,2]
[356597754,1742765440012,-1206.42292157,0.00011857,2]
[356597755,1742765440022,-150.0,0.00011899,2]
[356597756,1742765440032,-579.6212,0.000119,2]
[356597757,1742765440043,-8430.0,0.000119,2]
[356597758,1742765440053,-172.32079647,0.000119,2]
[356597759,1742765440066,-157.06257029,0.000119,2]
[356597760,1742765440075,-157.41100344,0.000119,2]
[356597761,1742765440086,-2837.51428941,0.000119,2]
[356597762,1742765440096,-2837.51428934,0.000119,2]
[356597763,1742765440105,-2837.51428934,0.00011901,2]
[356597764,1742765440115,-2837.51428934,0.00011901,2]
[356597765,1742765440125,-2837.51428934,0.00011902,2]
[356597766,1742765440138,-211.35942715,0.00011904,2]
[356597767,1742765440148,-6303.00648535,0.00011904,2]
[356597768,1742765440158,-300.66162033,0.00011973,2]
[356597769,1742765440167,-9972.38485498,0.00011985,2]
[356597770,1742765440176,-168.76,0.00011987,2]
[356597772,1742765440187,-777.137,0.0001199,2]
[356597774,1742765440197,-209.093,0.00011995,2]
[356597775,1742765440207,-3232.6538983,0.00011996,2]
[356597776,1742765440216,-1573.3896654,0.00011996,2]
[356597777,1742765440226,-175.78583291,0.00011999,2]
[356597778,1742765440235,-208.48826653,0.00011999,2]
[356597779,1742765440245,-591.0,0.00012,2]
[356597780,1742765440255,-1126841.87652936,0.00012,2]
[356597781,1742765440265,-169.61077808,0.00012,2]
[356597782,1742765440274,-1568282.95188665,0.00012,2]
[356597800,1742765443618,-2142.73976131,0.00011902,2]
[356597806,1742765445360,-694.77452803,0.00011902,2]
[356597807,1742765445370,-363.57403081,0.00011904,2]
[356597808,1742765445380,-539.0,0.00012,2]
[356597809,1742765445390,-6824.11666602,0.00012,2]
[356597810,1742765445424,-279.294995,0.00012,2]
[356597833,1742765801874,-166.23,0.0001164,2]
[356597834,1742765844301,-166.23,0.0001164,2]
[356597835,1742765889750,-166.23,0.0001164,2]
[356597836,1742765895481,-2.8488969,0.0001164,2]
[356597837,1742765895504,-163.3811031,0.00011702,2]
[356597842,1742766429739,511.77,9.538e-05,2]
[356597943,1742766639857,-250.0,0.00011,2]
[356597944,1742766639867,-23900.0,0.00011407,2]
[356597945,1742766639876,-157.06257029,0.00011439,2]
[356597946,1742766639886,-1000.0,0.00011539,2]
[356597947,1742766639895,-168.8,0.0001161,2]
[356597948,1742766639904,-169.0788969,0.0001164,2]
[356597949,1742766639914,-518.5388969,0.00011702,2]
[356597950,1742766639924,-250.0,0.00011734,2]
[356597951,1742766639933,-700.0,0.000118,2]
[356597952,1742766639943,-1122.1571,0.000118,2]
[356597953,1742766639952,-267.9351,0.000118,2]
[356597954,1742766639962,-511.77,0.00011802,2]
[356597955,1742766639971,-837.76139177,0.0001188,2]
[356597956,1742766639981,-11724.12406723,0.0001189,2]
[356597957,1742766639990,-150.0,0.00011899,2]
[356597958,1742766639999,-66142.8166,0.000119,2]
[356597959,1742766640009,-500.0,0.000119,2]
[356597960,1742766640018,-236.6263,0.000119,2]
[356597961,1742766640027,-8975.1057,0.000119,2]
[356597962,1742766640036,-2244.5651,0.000119,2]
[356597963,1742766640046,-269.3654,0.000119,2]
[356597964,1742766640055,-167.84122792,0.00011904,2]
[356597965,1742766640064,-159.50054782,0.00011904,2]
[356597966,1742766640074,-16792.00039804,0.00011904,2]
[356597967,1742766640083,-339.29991331,0.00011904,2]
[356597968,1742766640092,-2626.902916,0.00011904,2]
[356597969,1742766640102,-248.72125966,0.00011904,2]
[356597970,1742766640112,-300.66162033,0.00011973,2]
[356597971,1742766640121,-777.137,0.00011973,2]
[356597972,1742766640130,-209.093,0.00011973,2]
[356597973,1742766640139,-3143.3039309,0.00011996,2]
[356597974,1742766640149,-1529.9014604,0.00011996,2]
[356597975,1742766640158,-208.48826653,0.00011999,2]
[356597976,1742766640167,-175.78583291,0.00011999,2]
[356597977,1742766640176,-546.0,0.00012,2]
[356597978,1742766640185,-2596738.22468667,0.00012,2]
[356597979,1742766640212,-981.20509672,0.00012,2]
[356597990,1742766642822,-82973.37257798,0.00012,2]
[356598170,1742766878058,646.63999956,0.00031942,30]
[356598171,1742766892022,428.12672573,0.00031942,30]
[356598172,1742766904430,1115.349999,0.00025,60]
[356598173,1742766904459,1654.01039355,0.00031942,120]
[356598174,1742766907455,161.52398466,0.00031942,30]
[356598175,1742766911698,194.0,0.00031942,120]
[356598176,1742766944966,1000.0,0.00031942,30]
[356598177,1742766945562,1000.0,0.00031942,30]
[356598178,1742766946226,1000.0,0.00031942,30]
[356598179,1742766946812,1000.0,0.00031942,30]
[356598180,1742766947965,1000.0,0.00031942,30]
[356598181,1742766948538,1000.0,0.00031942,30]
[356598182,1742766949182,1000.0,0.00031942,30]
[356598183,1742766949763,1000.0,0.00031942,30]
[356598184,1742766950368,1000.0,0.00031942,30]
[356598185,1742766950964,1000.0,0.00031942,30]
[356598186,1742766951634,1000.0,0.00031942,30]
[356598187,1742766952575,1000.0,0.00031942,30]
[356598188,1742766953632,1000.0,0.00031942,30]
[356598189,1742766954261,1000.0,0.00031942,30]
[356598190,1742766954852,1000.0,0.00031942,30]
[356598191,1742766955471,1000.0,0.00031942,30]
[356598192,1742766956080,1000.0,0.00031942,30]
[356598193,1742766957122,1000.0,0.00031942,30]
[356598194,1742766957698,1000.0,0.00031942,30]
[356598195,1742766958502,1000.0,0.00031942,30]
[356598196,1742766959076,1000.0,0.00031942,30]
[356598197,1742766959665,1000.0,0.00031942,30]
[356598198,1742766960247,1000.0,0.00031942,30]
[356598199,1742766960911,1000.0,0.00031942,30]
[356598200,1742766961516,1000.0,0.00031942,30]
[356598201,1742766962128,1000.0,0.00031942,30]
[356598202,1742766962728,1000.0,0.00031942,30]
[356598203,1742766963498,1000.0,0.00031942,30]
[356598204,1742766963927,1000.0,0.00031942,30]
[356598205,1742766964672,1000.0,0.00031942,30]
[356598206,1742766965273,407.12029153,0.00031942,30]
[356598207,1742767025168,3084.0,0.00031942,31]
[356598208,1742767025718,3084.0,0.00031942,31]
[356598209,1742767025853,3084.0,0.00031942,31]
[356598210,1742767026394,3084.0,0.00031942,31]
[356598211,1742767026774,3087.0,0.00031942,31]
[356598212,1742767027166,3084.0,0.00031942,31]
[356598213,1742767144505,2300.8967606,0.00031942,60]
[356598215,1742767398324,603.14152564,0.0003184,120]
[356598216,1742767402736,155.80822493,0.0003184,120]
[356598220,1742767558248,-166.23,0.0001164,2]
[356598222,1742767585708,516.1,9.908e-05,2]
[356598223,1742767585981,-39.5897024,0.0001164,2]
[356598224,1742767586005,-126.6402976,0.0001164,2]
[356598229,1742767787249,307.6,0.00011813,3]
[356598232,1742767831808,-304.40955664,0.0001164,2]
[356598233,1742767831820,-650.2681439,0.0001164,2]
[356598234,1742767831830,-205.8197025,0.0001164,2]
[356598235,1742767831840,-1782.08693149,0.0001179,2]
[356598236,1742767831850,-2819.83225724,0.00011826,2]
[356598237,1742767831862,-1470.0270777,0.00011826,2]
[356598238,1742767831875,-946.24,0.00011826,2]
[356598239,1742767831886,-307.33790889,0.00011826,2]
[356598240,1742767831898,-823.89692,0.00011826,2]
[356598241,1742767831909,-274.58199992,0.00011826,2]
[356598242,1742767831921,-817.45027807,0.00011826,2]
[356598243,1742767831936,-774.11146098,0.00011826,2]
[356598244,1742767831947,-1070.10763094,0.00011826,2]
[356598245,1742767832009,-9193.96038633,0.00011826,2]
[356598246,1742767832021,-366.84501,0.00011826,2]
[356598247,1742767832032,-494.10232931,0.00011826,2]
[356598248,1742767832044,-2701.01323234,0.00011826,2]
[356598249,1742767832068,-1840.49350828,0.00011826,2]
[356598250,1742767832077,-7083.65025183,0.0001189,2]
[356598251,1742767832086,-439.5967,0.00011896,2]
[356598252,1742767832096,-3068.3707,0.00011896,2]
[356598253,1742767832105,-150.0,0.00011899,2]
[356598254,1742767832115,-448.8729,0.000119,2]
[356598255,1742767832124,-3171.59680896,0.000119,2]
[356598256,1742767832137,-387.11776415,0.000119,2]
[356598257,1742767832152,-80172.15352689,0.000119,2]
[356598258,1742767832161,-36983.0338,0.000119,2]
[356598259,1742767832170,-15681.1224,0.000119,2]
[356598260,1742767832180,-6652.6967,0.000119,2]
[356598261,1742767832190,-339.29991333,0.00011968,2]
[356598262,1742767832199,-654.125,0.00011973,2]
[356598263,1742767832209,-15112.80035829,0.00011976,2]
[356598264,1742767832220,-30553.25944428,0.00012,2]
[356598344,1742767837726,-1011.72487403,0.00012,2]
[356598345,1742767837738,-391.19999955,0.00012,2]
[356598348,1742767837783,-165905.38285065,0.00012,2]
[356598349,1742767837897,-4231.9277,0.00012,2]
[356598350,1742767837956,-3831.10195293,0.00012,2]
[356598351,1742767837967,-529.65863644,0.00012,2]
[356598352,1742767837981,-364.04259866,0.00012,2]
[356598353,1742767838020,-2500.0,0.00012,2]
[356598393,1742767840026,-1398.08790278,0.00012,2]
[356598394,1742767842223,-900.80899725,0.00012,2]
[356598395,1742767842235,-263.51469998,0.00012,2]
[356598563,1742767844907,-3774.18254663,0.00012,2]
[356599069,1742767953092,-704.3672,0.000118,2]
[356599070,1742767953117,-452.672,0.000118,2]
[356599071,1742767953142,-229.5314,0.000119,2]
[356599072,1742767955487,-166.66666666,0.00011,2]
[356599073,1742768041956,350.0,0.000114,3]
[356599074,1742768042298,-83.33333334,0.00011,2]
[356599075,1742768042325,-66.66666666,0.000114,2]
[356599076,1742768115463,1096.2,0.00031841,120]
[356599080,1742768712257,2262.33002804,0.00031839,120]
[356599081,1742768712786,176.48320948,0.00031839,91]
[356599082,1742768712840,167.48535741,0.00031839,30]
[356599083,1742768719667,186.24294755,0.00031839,120]
[356599084,1742768720269,1873.63533707,0.00031839,120]
[356599085,1742768728408,232.49059088,0.00031839,30]
[356599086,1742768737314,508.03986119,0.00031839,120]
[356599087,1742768739242,1323.62389063,0.00031839,120]
[356599088,1742768741281,868.07028772,0.00031839,120]
[356599089,1742768743174,1596.83375302,0.00031839,120]
[356599090,1742768746066,333.22908493,0.00031839,120]
[356599091,1742768752556,376.14505897,0.00031839,120]
[356599092,1742768755476,832.0076872,0.00031839,30]
[356599093,1742768760088,360.33519082,0.00031839,90]
[356599095,1742768764292,2523.4788962,0.00031839,120]
[356599096,1742768767181,820.75227954,0.00031839,120]
[356599097,1742768773508,1805.15773769,0.00031839,120]
[356599098,1742768775909,207.82377747,0.00031839,120]
[356599099,1742768781686,1884.86858778,0.00031839,120]
[356599100,1742768786764,1129.27114419,0.00031839,120]
[356599101,1742768812549,214.90497887,0.00031839,120]
[356599102,1742768819480,1707.6964647,0.00031839,120]
[356599103,1742768819935,1345.59570434,0.00031839,120]
[356599110,1742768853019,257.39518041,0.00031839,120]
[356599111,1742768853522,345.4896668,0.00031839,120]
[356599112,1742768857474,1144.27525727,0.00031839,120]
[356599113,1742768863393,188.77111812,0.00031839,120]
[356599114,1742768865626,1079.46031148,0.00031839,120]
[356599115,1742768871018,258.68897613,0.00031839,120]
[356599116,1742768879321,204.8069297,0.00031839,30]
[356599117,1742768880888,949.54680549,0.00031839,120]
[356599118,1742768904343,330.49181866,0.00031839,120]
[356599119,1742768908462,1279.70434246,0.00031839,120]
[356599120,1742768909021,2026.43489873,0.00031839,120]
[356599121,1742768909873,154.00002524,0.00031839,30]
[356599122,1742768911176,876.1603517,0.00031839,120]
[356599123,1742768911826,1164.43261049,0.00031839,120]
[356599124,1742768912615,384.16235078,0.00031839,120]
[356599125,1742768912943,1859.63556504,0.00031839,120]
[356599126,1742768913826,2901.0489073,0.00031839,120]
[356599127,1742768914617,1290.43870665,0.00031839,120]
[356599128,1742768915561,226.54762843,0.00031839,120]
[356599129,1742768917177,976.40155139,0.00031839,120]
[356599130,1742768918174,210.20066403,0.00031839,120]
[356599131,1742768919292,343.34602315,0.00031839,120]
[356599132,1742768919665,505.97670185,0.00031839,120]
[356599133,1742768920319,603.16393723,0.00031839,120]
[356599147,1742769032192,-166.23,0.00011466,2]
[356599148,1742769032202,-542.49,0.00011475,2]
[356599149,1742769032212,-452.02403249,0.00011513,2]
[356599150,1742769032223,-8518.81,0.00011535,2]
[356599151,1742769032233,-205.25,0.00011566,2]
[356599152,1742769032242,-150.0,0.00011587,2]
[356599153,1742769032252,-166.66666666,0.00011699,2]
[356599154,1742769032262,-150.0,0.00011699,2]
[356599155,1742769032271,-9172.01999084,0.000117,2]
[356599156,1742769032283,-1919.11312492,0.000117,2]
[356599157,1742769032302,-406.62984175,0.000117,2]
[356599158,1742769032313,-859.23838,0.000117,2]
[356599159,1742769032325,-5574.96988857,0.000117,2]
[356599162,1742769037939,-1109.2,0.000117,2]
[356599163,1742769037952,-658.81543012,0.000117,2]
[356599164,1742769038022,-1119.92206623,0.000117,2]
[356599165,1742769038102,-273.02906358,0.000117,2]
[356599172,1742769040151,-4605.35849445,0.000117,2]
[356599173,1742769040187,-275.03208881,0.000117,2]
[356599174,1742769040198,-1700.47070291,0.000117,2]
[356599182,1742769044121,-4244.18478496,0.000117,2]
[356599669,1742769082674,150.0,0.00011324,7]
[356599824,1742769112986,500.0,0.00031839,30]
[356599827,1742769113249,420.53975549,0.00031839,30]
[356599835,1742769114251,826.54,0.00031839,30]
[356599838,1742769114507,826.54,0.00031839,30]
[356599841,1742769114757,826.54,0.00031839,30]
[356599844,1742769115014,826.54,0.00031839,30]
[356599847,1742769115278,826.54,0.00031839,30]
[356599850,1742769115555,826.54,0.00031839,30]
[356599853,1742769115856,826.54,0.00031839,30]
[356599856,1742769116150,826.54,0.00031839,30]
[356599859,1742769116409,826.54,0.00031839,30]
[356599862,1742769116708,826.54,0.00031839,30]
[356599866,1742769116959,826.54,0.00031839,30]
[356599870,1742769117218,826.54,0.00031839,30]
[356599873,1742769117472,826.54,0.00031839,30]
[356599875,1742769117728,826.54,0.00031839,30]
[356599878,1742769117962,826.54,0.00031839,30]
[356599880,1742769118103,500.0,0.00031839,30]
[356599881,1742769118226,826.54,0.00031839,30]
[356599882,1742769118376,189.334729,0.00031839,30]
[356599884,1742769118487,826.54,0.00031839,30]
[356599886,1742769118726,826.54,0.00031839,30]
[356599889,1742769118984,826.54,0.00031839,30]
[356599891,1742769119245,826.54,0.00031839,30]
[356599893,1742769119499,826.54,0.00031839,30]
[356599896,1742769119734,826.54,0.00031839,30]
[356599898,1742769119971,826.54,0.00031839,30]
[356599900,1742769120224,826.76712759,0.00031839,30]
[356599909,1742769122453,691.01,0.00031839,30]
[356599911,1742769122716,691.01,0.00031839,30]
[356599913,1742769123008,691.01,0.00031839,30]
[356599915,1742769123265,691.01,0.00031839,30]
[356599916,1742769123538,691.01,0.00031839,30]
[356599917,1742769123778,691.01,0.00031839,30]
[356599918,1742769124028,691.01,0.00031839,30]
[356599919,1742769124297,691.01,0.00031839,30]
[356599920,1742769124674,691.01,0.00031839,30]
[356599921,1742769124968,691.01,0.00031839,30]
[356599922,1742769125229,691.01,0.00031839,30]
[356599923,1742769125540,691.01,0.00031839,30]
[356599924,1742769125797,691.01,0.00031839,30]
[356599925,1742769126077,691.01,0.00031839,30]
[356599926,1742769126348,691.01,0.00031839,30]
[356599928,1742769126636,691.01,0.00031839,30]
[356599929,1742769126906,691.01,0.00031839,30]
[356599930,1742769126990,500.0,0.00031839,30]
[356599931,1742769127155,691.01,0.00031839,30]
[356599932,1742769127445,691.01,0.00031839,30]
[356599933,1742769127712,691.01,0.00031839,30]
[356599936,1742769128007,500.0,0.00031839,30]
[356599938,1742769128295,500.0,0.00031839,30]
[356599939,1742769128326,691.01,0.00031839,30]
[356599941,1742769128551,371.88023173,0.00031839,30]
[356599942,1742769128589,691.01,0.00031839,30]
[356599943,1742769128870,691.01,0.00031839,30]
[356599944,1742769128942,359.05420277,0.00031839,30]
[356599945,1742769128973,527.78,0.00031839,30]
[356599946,1742769129138,691.08703047,0.00031839,30]
[356599948,1742769131029,506.31863151,0.00031839,30]
[356599949,1742769131066,544.7,0.00031839,30]
[356599951,1742769131337,544.7,0.00031839,30]
[356599953,1742769131620,544.7,0.00031839,30]
[356599955,1742769131965,544.7,0.00031839,30]
[356599957,1742769132184,544.7,0.00031839,30]
[356599959,1742769132555,544.7,0.00031839,30]
[356599962,1742769132741,500.0,0.00031839,30]
[356599963,1742769132821,544.7,0.00031839,30]
[356599966,1742769133072,544.7,0.00031839,30]
[356599968,1742769133398,500.0,0.00031839,30]
[356599969,1742769133452,544.7,0.00031839,30]
[356599971,1742769133660,500.0,0.00031839,30]
[356599972,1742769133757,544.7,0.00031839,30]
[356599973,1742769133911,500.0,0.00031839,30]
[356599975,1742769134052,544.7,0.00031839,30]
[356599976,1742769134190,395.602387,0.00031839,30]
[356599979,1742769134464,544.7,0.00031839,30]
[356599983,1742769134751,544.7,0.00031839,30]
[356599986,1742769135053,544.7,0.00031839,30]
[356599989,1742769135303,544.7,0.00031839,30]
[356599992,1742769135652,508.31195909,0.00031839,30]
[356599995,1742769135905,544.7,0.00031839,30]
[356599997,1742769136165,544.7,0.00031839,30]
[356600000,1742769136758,544.7,0.00031839,30]
[356600002,1742769137046,544.7,0.00031839,30]
[356600004,1742769137408,544.7,0.00031839,30]
[356600006,1742769137666,544.7,0.00031839,30]
[356600008,1742769137906,544.7,0.00031839,30]
[356600010,1742769138155,500.0,0.00031839,30]
[356600011,1742769138253,544.7,0.00031839,30]
[356600013,1742769138499,544.86805886,0.00031839,30]
[356600018,1742769140879,510.50747105,0.00031839,30]
[356600027,1742769141644,500.0,0.00031839,30]
[356600032,1742769141892,500.0,0.00031839,30]
[356600035,1742769142138,500.0,0.00031839,30]
[356600037,1742769142180,500.0,0.00031839,30]
[356600038,1742769142272,541.21971901,0.00031839,30]
[356600040,1742769142316,500.0,0.00031839,30]
[356600041,1742769142377,505.3384452,0.00031839,30]
[356600043,1742769142419,500.0,0.00031839,30]
[356600046,1742769142580,500.0,0.00031839,30]
[356600048,1742769142693,500.0,0.00031839,30]
[356600051,1742769142845,500.0,0.00031839,30]
[356600053,1742769142929,500.0,0.00031839,30]
[356600056,1742769143097,500.0,0.00031839,30]
[356600058,1742769143189,500.0,0.00031839,30]
[356600061,1742769143349,500.0,0.00031839,30]
[356600063,1742769143467,500.0,0.00031839,30]
[356600064,1742769143608,500.0,0.00031839,30]
[356600065,1742769143656,500.0,0.00031839,30]
[356600066,1742769143726,500.0,0.00031839,30]
[356600067,1742769143862,500.0,0.00031839,30]
[356600068,1742769143907,500.0,0.00031839,30]
[356600069,1742769143988,500.0,0.00031839,30]
[356600070,1742769144131,542.88859408,0.00031839,30]
[356600071,1742769144177,500.0,0.00031839,30]
[356600072,1742769144260,500.0,0.00031839,30]
[356600073,1742769144307,500.84827563,0.00031839,30]
[356600074,1742769144361,395.51771057,0.00031839,30]
[356600075,1742769144509,500.0,0.00031839,30]
[356600076,1742769144747,500.0,0.00031839,30]
[356600077,1742769145375,500.0,0.00031839,30]
[356600078,1742769145634,500.0,0.00031839,30]
[356600079,1742769145891,500.0,0.00031839,30]
[356600080,1742769146048,500.0,0.00031839,30]
[356600081,1742769146164,490.7712875,0.00031839,30]
[356600082,1742769147615,505.63344574,0.00031839,30]
[356600083,1742769148044,531.47294475,0.00031839,30]
[356600084,1742769149429,511.06805853,0.00031839,30]
[356600085,1742769150354,512.92181615,0.00031839,30]
[356600086,1742769151290,505.76818334,0.00031839,30]
[356600087,1742769152047,500.0,0.00031839,30]
[356600088,1742769152403,500.0,0.00031839,30]
[356600089,1742769152471,509.43306772,0.00031839,30]
[356600090,1742769152545,500.0,0.00031839,30]
[356600091,1742769152589,510.67242385,0.00031839,30]
[356600092,1742769152816,194.03072382,0.00031839,30]
[356600093,1742769154686,515.32592901,0.00031839,30]
[356600094,1742769154731,501.93909898,0.00031839,30]
[356600095,1742769155421,500.0,0.00031839,30]
[356600096,1742769155664,350.61553726,0.00031839,30]
[356600097,1742769156862,508.78964451,0.00031839,30]
[356600098,1742769158685,503.35466104,0.00031839,30]
[356600099,1742769158736,504.7386899,0.00031839,30]
[356600100,1742769158978,500.0,0.00031839,30]
[356600101,1742769159233,500.0,0.00031839,30]
[356600102,1742769159497,500.0,0.00031839,30]
[356600103,1742769159736,500.0,0.00031839,30]
[356600104,1742769160006,523.31453399,0.00031839,30]
[356600105,1742769160570,506.65175188,0.00031839,30]
[356600106,1742769162496,526.98194089,0.00031839,30]
[356600107,1742769162684,508.09694318,0.00031839,30]
[356600108,1742769164014,535.25186918,0.00031839,30]
[356600109,1742769164561,500.0,0.00031839,30]
[356600110,1742769164716,2053.57059387,0.00031839,30]
[356600111,1742769164929,533.31,0.00031839,30]
[356600112,1742769166473,501.55804095,0.00031839,30]
[356600113,1742769168288,501.99257482,0.00031839,30]
[356600114,1742769168746,503.96342418,0.00031839,30]
[356600115,1742769169958,500.0,0.00031839,30]
[356600116,1742769170210,264.65606567,0.00031839,30]
[356600117,1742769170393,508.86172241,0.00031839,30]
[356600118,1742769170677,500.0,0.00031839,30]
[356600119,1742769170762,505.76054519,0.00031839,30]
[356600120,1742769170911,502.17364645,0.00031839,30]
[356600121,1742769170954,500.0,0.00031839,30]
[356600122,1742769171080,500.0,0.00031839,30]
[356600123,1742769171154,500.0,0.00031839,30]
[356600124,1742769171358,178.17891682,0.00031839,30]
[356600125,1742769171401,500.0,0.00031839,30]
[356600126,1742769171650,500.0,0.00031839,30]
[356600127,1742769171922,500.0,0.00031839,30]
[356600128,1742769172153,500.0,0.00031839,30]
[356600129,1742769172392,500.0,0.00031839,30]
[356600130,1742769172718,500.0,0.00031839,30]
[356600131,1742769172970,500.0,0.00031839,30]
[356600132,1742769173014,502.73064056,0.00031839,30]
[356600133,1742769173150,506.62088662,0.00031839,30]
[356600134,1742769173248,500.0,0.00031839,30]
[356600135,1742769173517,500.0,0.00031839,30]
[356600136,1742769173780,500.0,0.00031839,30]
[356600137,1742769174173,500.0,0.00031839,30]